Workbook

Sheet Başlangıç
B1: BU ŞABLON HAKKINDA
B2: Kanal Pazarlama Bütçesi oluşturmak için bu şablonu kullanın.
B3: Tablolara her bir ay için Beklenen Satışları ve diğer ayrıntıları girin.
B4: Toplamlar otomatik olarak hesaplanır ve mini grafikler güncelleştirilir.
B5: Not:
B6: KANAL PAZARLAMA BÜTÇESİ çalışma sayfasının A sütununda ek yönergeler sağlanmıştır. Bu metin özellikle gizlendi. Metni kaldırmak için A sütununu ve ardından SİL seçeneğini belirleyin. Metni göstermek için A sütununu seçin ve yazı tipi rengini değiştirin.
B7: Tablolar hakkında daha fazla bilgi edinmek için bir tabloda sırasıyla SHIFT ve F10 tuşlarına basıp TABLO seçeneğini belirleyin, ardından ALTERNATİF METİN’i seçin.

Sheet Kanal Pazarlama Bütçesi
C2: Ücret | D2: 1. Ay | E2: 2. Ay | F2: 3. Ay | G2: 4. Ay | H2: 5. Ay | I2: 6. Ay | J2: 7. Ay | K2: 8. Ay | L2: 9. Ay | M2: 10. Ay | N2: 11. Ay | O2: 12. Ay | Q2: Toplam
B3: BEKLENEN SATIŞLAR TOPLAMI ₺(000) | D3: 750 | E3: 200 | F3: 500 | G3: 1,500 | H3: 1,200 | I3: 1,500 | J3: 1,500 | K3: 1,800 | L3: 2,000 | M3: 2,000 | N3: 2,000 | O3: 2,000 | Q3: =SUM(D3:O3) -> 16,950
A4: Sağdaki hücrede başlayan Personel tablosuna ayrıntıları girin. Her bir ay için Personel Toplamı tablo sonunda ve yıllık Toplam Q9 hücresinde otomatik olarak hesaplanır. Mini grafik S9 hücresinde güncelleştirilir. Sonraki yönerge A10 hücresindedir. | B4: Personel Öğeleri | C4: Ücret | D4: 1. Ay | E4: 2. Ay | F4: 3. Ay | G4: 4. Ay | H4: 5. Ay | I4: 6. Ay | J4: 7. Ay | K4: 8. Ay | L4: 9. Ay | M4: 10. Ay | N4: 11. Ay | O4: 12. Ay
B5: PERSONEL (TOPLAM SATIŞLARIN YÜZDESİ) | D5: =D11+D36+D44+D51 -> 110% | E5: 110% | F5: =F11+F36+F44+F51 -> 110% | G5: 110% | H5: 110% | I5: 110% | J5: 110% | K5: 110% | L5: 85% | M5: 85% | N5: 85% | O5: 85%
B6: İnsan Kaynakları - Çalışan Sayısı | C6: 5 | D6: =+$C$6 -> 5 | E6: 5 | F6: 5 | G6: 5 | H6: 5 | I6: 5 | J6: 5 | K6: 5 | L6: 5 | M6: 5 | N6: 5 | O6: 5
B7: İnsan Kaynakları - Maliyet | D7: =$C$6*D6 -> 25.00 | E7: 25.00 | F7: 25.00 | G7: 25.00 | H7: 25.00 | I7: 25.00 | J7: 25.00 | K7: 25.00 | L7: 25.00 | M7: 25.00 | N7: 25.00 | O7: 25.00 | Q7: =SUM('Kanal Pazarlama Bütçesi'!$D7:$O7) -> 300.00
B8: Komisyon | C8: 0.10% | D8: =D3*$C$8 -> 0.75 | E8: 0.20 | F8: 0.50 | G8: 1.50 | H8: 1.20 | I8: 1.50 | J8: 1.50 | K8: 1.80 | L8: 2.00 | M8: 2.00 | N8: 2.00 | O8: 2.00 | Q8: =SUM('Kanal Pazarlama Bütçesi'!$D8:$O8) -> 16.95
B9: Personel Toplamı ₺(000) | D9: =SUM(D7:D8) -> 25.75 | E9: =SUM(E7:E8) -> 25.20 | F9: 25.50 | G9: 26.50 | H9: 26.20 | I9: 26.50 | J9: 26.50 | K9: 26.80 | L9: 27.00 | M9: 27.00 | N9: 27.00 | O9: 27.00 | Q9: =SUM(Q7:Q8) -> 316.95
B10: DOĞRUDAN PAZARLAMA ÖĞELERİ | C10: Ücret | D10: 1. Ay | E10: 2. Ay | F10: 3. Ay | G10: 4. Ay | H10: 5. Ay | I10: 6. Ay | J10: 7. Ay | K10: 8. Ay | L10: 9. Ay | M10: 10. Ay | N10: 11. Ay | O10: 12. Ay
B11: DOĞRUDAN PAZARLAMA (TOPLAM SATIŞLARIN YÜZDESİ) | D11: 100% | E11: 100% | F11: 75% | G11: 40% | H11: 33% | I11: 25% | J11: 20% | K11: 10% | L11: 5% | M11: 5% | N11: 5% | O11: 5%
B12: Telefonla Pazarlama (Doğrudan Satışların Yüzdesi) | D12: 100% | E12: 50% | F12: 50% | G12: 50% | H12: 50% | I12: 50% | J12: 50% | K12: 50% | L12: 50% | M12: 50% | N12: 50% | O12: 50%
B13: İnsan Kaynakları - Çalışan Sayısı | C13: 3 | D13: =$C$13*D12 -> 3 | E13: 1.5 | F13: 1.5 | G13: 1.5 | H13: 1.5 | I13: 1.5 | J13: 1.5 | K13: 1.5 | L13: 1.5 | M13: 1.5 | N13: 1.5 | O13: 1.5 | Q13: =SUM('Kanal Pazarlama Bütçesi'!$D13:$O13) -> 19.50
B14: Altyapı Desteği | D14: 25 | E14: 10 | F14: 25 | G14: 10 | H14: 25 | I14: 10 | J14: 25 | K14: 10 | L14: 25 | M14: 10 | N14: 25 | O14: 10 | Q14: =SUM('Kanal Pazarlama Bütçesi'!$D14:$O14) -> 210.00
B15: Komisyon | C15: 0.10% | D15: =$C$15*D3*D11*D12 -> 0.75 | E15: 0.10 | F15: 0.19 | G15: 0.30 | H15: 0.20 | I15: 0.19 | J15: 0.15 | K15: 0.09 | L15: 0.05 | M15: 0.05 | N15: 0.05 | O15: 0.05 | Q15: =SUM('Kanal Pazarlama Bütçesi'!$D15:$O15) -> 2.16
B16: Eğitim | D16: 25 | E16: 10 | F16: 25 | G16: 10 | H16: 25 | I16: 10 | J16: 25 | K16: 10 | L16: 25 | M16: 10 | N16: 25 | O16: 10 | Q16: =SUM('Kanal Pazarlama Bütçesi'!$D16:$O16) -> 210.00
B17: Telefonla Pazarlama Toplamı ₺(000) | D17: =SUM(D13:D16) -> 53.75 | E17: =SUM(E13:E16) -> 21.60 | F17: =SUM(F13:F16) -> 51.69 | G17: 21.80 | H17: 51.70 | I17: 21.69 | J17: 51.65 | K17: 21.59 | L17: 51.55 | M17: 21.55 | N17: 51.55 | O17: 21.55 | Q17: =SUM(Q13:Q16) -> 441.66
B18: İNTERNET PAZARLAMACILIĞI ÖĞELERİ | C18: Ücret | D18: 1. Ay | E18: 2. Ay | F18: 3. Ay | G18: 4. Ay | H18: 5. Ay | I18: 6. Ay | J18: 7. Ay | K18: 8. Ay | L18: 9. Ay | M18: 10. Ay | N18: 11. Ay | O18: 12. Ay
B19: İNTERNET PAZARLAMACILIĞI (DOĞRUDAN SATIŞLARIN YÜZDESİ) | D19: 25% | E19: 25% | F19: 25% | G19: 25% | H19: 25% | I19: 25% | J19: 25% | K19: 25% | L19: 25% | M19: 25% | N19: 25% | O19: 25%
B20: İnsan Kaynakları - Çalışan Sayısı | C20: 1 | D20: =$C$20*D19 -> 0.25 | E20: 0.25 | F20: 0.25 | G20: 0.25 | H20: 0.25 | I20: 0.25 | J20: 0.25 | K20: 0.25 | L20: 0.25 | M20: 0.25 | N20: 0.25 | O20: 0.25 | Q20: =SUM('Kanal Pazarlama Bütçesi'!$D20:$O20) -> 3.00
B21: Web Sitesi Geliştirme (tek seferlik maliyet) | D21: 500 | Q21: =SUM('Kanal Pazarlama Bütçesi'!$D21:$O21) -> 500.00
B22: Barındırma | D22: 10 | E22: 10 | F22: 10 | G22: 10 | H22: 10 | I22: 10 | J22: 10 | K22: 10 | L22: 10 | M22: 10 | N22: 10 | O22: 10 | Q22: =SUM('Kanal Pazarlama Bütçesi'!$D22:$O22) -> 120.00
B23: Destek ve Bakım | D23: 25 | N23: 25 | Q23: =SUM('Kanal Pazarlama Bütçesi'!$D23:$O23) -> 50.00
B24: Facebook | E24: 100 | G24: 100 | I24: 100 | K24: 100 | M24: 100 | O24: 100 | Q24: =SUM('Kanal Pazarlama Bütçesi'!$D24:$O24) -> 600.00
B25: Twitter | D25: 100 | F25: 100 | H25: 100 | J25: 100 | L25: 100 | N25: 100 | Q25: =SUM('Kanal Pazarlama Bütçesi'!$D25:$O25) -> 600.00
B26: YouTube | E26: 100 | G26: 100 | H26: 100 | L26: 100 | M26: 100 | O26: 100 | Q26: =SUM('Kanal Pazarlama Bütçesi'!$D26:$O26) -> 600.00
B27: Internet Pazarlamacılığı Toplamı ₺(000) | D27: =SUM(D20:D23) -> 535.25 | E27: 10.25 | F27: 10.25 | G27: 10.25 | H27: 10.25 | I27: 10.25 | J27: 10.25 | K27: 10.25 | L27: 10.25 | M27: 10.25 | N27: 35.25 | O27: 10.25 | Q27: =SUM(Q20:Q23) -> 673.00
B28: DOĞRUDAN POSTA ÖĞELERİ | C28: Ücret | D28: 1. Ay | E28: 2. Ay | F28: 3. Ay | G28: 4. Ay | H28: 5. Ay | I28: 6. Ay | J28: 7. Ay | K28: 8. Ay | L28: 9. Ay | M28: 10. Ay | N28: 11. Ay | O28: 12. Ay
B29: DOĞRUDAN POSTA (DOĞRUDAN SATIŞLARIN YÜZDESİ)
B30: İnsan Kaynakları - Maliyet | Q30: =SUM('Kanal Pazarlama Bütçesi'!$D30:$O30) -> 0.00
B31: Malzeme | D31: 1000 | E31: 1000 | F31: 1000 | G31: 1000 | H31: 1000 | I31: 1000 | J31: 1000 | K31: 1000 | L31: 1000 | M31: 1000 | N31: 1000 | O31: 1000 | Q31: =SUM('Kanal Pazarlama Bütçesi'!$D31:$O31) -> 12,000.00
B32: Posta | D32: 250 | E32: 250 | F32: 250 | G32: 250 | H32: 250 | I32: 250 | J32: 250 | K32: 250 | L32: 250 | M32: 250 | N32: 250 | O32: 250 | Q32: =SUM('Kanal Pazarlama Bütçesi'!$D32:$O32) -> 3,000.00
B33: Doğrudan Posta Toplamı ₺(000) | D33: =SUM(D30:D32) -> 1,250.00 | E33: =SUM(E30:E32) -> 1,250.00 | F33: 1,250.00 | G33: 1,250.00 | H33: 1,250.00 | I33: 1,250.00 | J33: 1,250.00 | K33: 1,250.00 | L33: 1,250.00 | M33: 1,250.00 | N33: 1,250.00 | O33: 1,250.00 | Q33: =SUM(Q30:Q32) -> 15,000.00
B34: Doğrudan Pazarlama Toplamı ₺(000) | D34: =SUM(DoğrudanPosta[[#Totals],[1. Ay]],İnternetPazarlamacılığı[[#Totals],[1. Ay]],DoğrudanPazarlama[[#Totals],[1. Ay]]) -> 1,839.00 | E34: =SUM(DoğrudanPosta[[#Totals],[2. Ay]],İnternetPazarlamacılığı[[#Totals],[2. Ay]],DoğrudanPazarlama[[#Totals],[2. Ay]]) -> 1,281.85 | F34: =SUM(DoğrudanPosta[[#Totals],[3. Ay]],İnternetPazarlamacılığı[[#Totals],[3. Ay]],DoğrudanPazarlama[[#Totals],[3. Ay]]) -> 1,311.94 | G34: =SUM(DoğrudanPosta[[#Totals],[4. Ay]],İnternetPazarlamacılığı[[#Totals],[4. Ay]],DoğrudanPazarlama[[#Totals],[4. Ay]]) -> 1,282.05 | H34: =SUM(DoğrudanPosta[[#Totals],[5. Ay]],İnternetPazarlamacılığı[[#Totals],[5. Ay]],DoğrudanPazarlama[[#Totals],[5. Ay]]) -> 1,311.95 | I34: =SUM(DoğrudanPosta[[#Totals],[6. Ay]],İnternetPazarlamacılığı[[#Totals],[6. Ay]],DoğrudanPazarlama[[#Totals],[6. Ay]]) -> 1,281.94 | J34: =SUM(DoğrudanPosta[[#Totals],[7. Ay]],İnternetPazarlamacılığı[[#Totals],[7. Ay]],DoğrudanPazarlama[[#Totals],[7. Ay]]) -> 1,311.90 | K34: =SUM(DoğrudanPosta[[#Totals],[8. Ay]],İnternetPazarlamacılığı[[#Totals],[8. Ay]],DoğrudanPazarlama[[#Totals],[8. Ay]]) -> 1,281.84 | L34: =SUM(DoğrudanPosta[[#Totals],[9. Ay]],İnternetPazarlamacılığı[[#Totals],[9. Ay]],DoğrudanPazarlama[[#Totals],[9. Ay]]) -> 1,311.80 | M34: =SUM(DoğrudanPosta[[#Totals],[10. Ay]],İnternetPazarlamacılığı[[#Totals],[10. Ay]],DoğrudanPazarlama[[#Totals],[10. Ay]]) -> 1,281.80 | N34: =SUM(DoğrudanPosta[[#Totals],[11. Ay]],İnternetPazarlamacılığı[[#Totals],[11. Ay]],DoğrudanPazarlama[[#Totals],[11. Ay]]) -> 1,336.80 | O34: =SUM(DoğrudanPosta[[#Totals],[12. Ay]],İnternetPazarlamacılığı[[#Totals],[12. Ay]],DoğrudanPazarlama[[#Totals],[12. Ay]]) -> 1,281.80 | Q34: =SUM(Q33,Q27,Q17,Q9) -> 16,431.61
B35: ARACI ÖĞELERİ | C35: Ücret | D35: 1. Ay | E35: 2. Ay | F35: 3. Ay | G35: 4. Ay | H35: 5. Ay | I35: 6. Ay | J35: 7. Ay | K35: 8. Ay | L35: 9. Ay | M35: 10. Ay | N35: 11. Ay | O35: 12. Ay
B36: ARACI (TOPLAM SATIŞLARIN YÜZDESİ) | D36: 10% | E36: 10% | F36: 10% | G36: 10% | H36: 10% | I36: 10% | J36: 10% | K36: 10% | L36: 10% | M36: 10% | N36: 10% | O36: 10%
B37: İletişim | D37: 50 | E37: 50 | F37: 50 | G37: 50 | H37: 50 | I37: 50 | J37: 50 | K37: 50 | L37: 50 | M37: 50 | N37: 50 | O37: 50 | Q37: =SUM('Kanal Pazarlama Bütçesi'!$D37:$O37) -> 600.00
B38: Eğitim | D38: 250.00 | E38: 250.00 | F38: 250.00 | G38: 250.00 | H38: 250.00 | I38: 250.00 | J38: 250.00 | K38: 250.00 | L38: 250.00 | M38: 250.00 | N38: 250.00 | O38: 250.00 | Q38: =SUM('Kanal Pazarlama Bütçesi'!$D38:$O38) -> 3,000.00
B39: Promosyonlar | D39: 600.00 | E39: 600.00 | F39: 600.00 | G39: 600.00 | H39: 600.00 | I39: 600.00 | J39: 600.00 | K39: 600.00 | L39: 600.00 | M39: 600.00 | N39: 600.00 | O39: 600.00 | Q39: =SUM('Kanal Pazarlama Bütçesi'!$D39:$O39) -> 7,200.00
B40: İndirimler | C40: 10.00% | D40: =D3*D36*$C$40 -> 7.50 | E40: 2.00 | F40: 5.00 | G40: 15.00 | H40: 12.00 | I40: 15.00 | J40: 15.00 | K40: 18.00 | L40: 20.00 | M40: 20.00 | N40: 20.00 | O40: 20.00 | Q40: =SUM('Kanal Pazarlama Bütçesi'!$D40:$O40) -> 169.50
B41: Komisyon (Aracının Satışlarının Yüzdesi) | C41: 10.00% | D41: =D3*D36*$C$41 -> 7.50 | E41: 2.00 | F41: 5.00 | G41: 15.00 | H41: 12.00 | I41: 15.00 | J41: 15.00 | K41: 18.00 | L41: 20.00 | M41: 20.00 | N41: 20.00 | O41: 20.00 | Q41: =SUM('Kanal Pazarlama Bütçesi'!$D41:$O41) -> 169.50
B42: Aracı Toplamı ₺(000) | D42: =SUM(D37:D41) -> 915.00 | E42: =SUM(E37:E41) -> 904.00 | F42: 910.00 | G42: 930.00 | H42: 924.00 | I42: 930.00 | J42: 930.00 | K42: 936.00 | L42: 940.00 | M42: 940.00 | N42: 940.00 | O42: 940.00 | Q42: =SUM(Q37:Q41) -> 11,139.00
B43: DAĞITIMCI ÖĞELERİ | C43: Ücret | D43: 1. Ay | E43: 2. Ay | F43: 3. Ay | G43: 4. Ay | H43: 5. Ay | I43: 6. Ay | J43: 7. Ay | K43: 8. Ay | L43: 9. Ay | M43: 10. Ay | N43: 11. Ay | O43: 12. Ay
B44: DAĞITIMCILAR (TOPLAM SATIŞLARIN YÜZDESİ) | D44: 0% | E44: 0% | F44: 0% | G44: 0% | H44: 0% | I44: 15% | J44: 20% | K44: 40% | L44: 40% | M44: 40% | N44: 40% | O44: 40%
B45: İletişim | D45: 50 | E45: 50 | F45: 50 | G45: 50 | H45: 50 | I45: 50 | J45: 50 | K45: 50 | L45: 50 | M45: 50 | N45: 50 | O45: 50 | Q45: =SUM('Kanal Pazarlama Bütçesi'!$D45:$O45) -> 600.00
B46: Eğitim | D46: 250.00 | E46: 250.00 | F46: 250.00 | G46: 250.00 | H46: 250.00 | I46: 250.00 | J46: 250.00 | K46: 250.00 | L46: 250.00 | M46: 250.00 | N46: 250.00 | O46: 250.00 | Q46: =SUM(Dağıtımcılar[[#This Row],[1. Ay]:[12. Ay]]) -> 3,000.00
B47: Promosyonlar | D47: 600.00 | E47: 600.00 | F47: 600.00 | G47: 600.00 | H47: 600.00 | I47: 600.00 | J47: 600.00 | K47: 600.00 | L47: 600.00 | M47: 600.00 | N47: 600.00 | O47: 600.00 | Q47: =SUM(Dağıtımcılar[[#This Row],[1. Ay]:[12. Ay]]) -> 7,200.00
B48: Komisyon/İndirimler (Dağıtımcının Satışlarının Yüzdesi) | C48: 15.00% | D48: =D3*D44*$C$48 -> 0 | E48: 0 | F48: 0 | G48: 0 | H48: 0 | I48: 33.75 | J48: 45 | K48: 108 | L48: 120 | M48: 120 | N48: 120 | O48: 120 | Q48: =SUM(Dağıtımcılar[[#This Row],[1. Ay]:[12. Ay]]) -> 666.75
B49: Dağıtımcı Toplamı ₺(000) | D49: =SUM(D45:D48) -> 900.00 | E49: =SUM(E45:E48) -> 900.00 | F49: 900.00 | G49: 900.00 | H49: 900.00 | I49: 933.75 | J49: 945.00 | K49: 1,008.00 | L49: 1,020.00 | M49: 1,020.00 | N49: 1,020.00 | O49: 1,020.00 | Q49: =SUM(Q45:Q48) -> 11,466.75
B50: PERAKENDE ÖĞELERİ | C50: Ücret | D50: 1. Ay | E50: 2. Ay | F50: 3. Ay | G50: 4. Ay | H50: 5. Ay | I50: 6. Ay | J50: 7. Ay | K50: 8. Ay | L50: 9. Ay | M50: 10. Ay | N50: 11. Ay | O50: 12. Ay
B51: PERAKENDECİ (TOPLAM SATIŞLARIN YÜZDESİ) | D51: 0% | E51: 0% | F51: 25% | G51: 60% | H51: 67% | I51: 60% | J51: 60% | K51: 50% | L51: 30% | M51: 30% | N51: 30% | O51: 30%
B52: İletişim | D52: 50 | E52: 50 | F52: 50 | G52: 50 | H52: 50 | I52: 50 | J52: 50 | K52: 50 | L52: 50 | M52: 50 | N52: 50 | O52: 50
B53: Eğitim | D53: 250.00 | E53: 250.00 | F53: 250.00 | G53: 250.00 | H53: 250.00 | I53: 250.00 | J53: 250.00 | K53: 250.00 | L53: 250.00 | M53: 250.00 | N53: 250.00 | O53: 250.00 | Q53: =SUM('Kanal Pazarlama Bütçesi'!$D52:$O52) -> 600.00
B54: Promosyonlar | D54: 600.00 | E54: 600.00 | F54: 600.00 | G54: 600.00 | H54: 600.00 | I54: 600.00 | J54: 600.00 | K54: 600.00 | L54: 600.00 | M54: 600.00 | N54: 600.00 | O54: 600.00 | Q54: =SUM('Kanal Pazarlama Bütçesi'!$D53:$O53) -> 3,000.00
B55: Komisyon/İndirimler (Perakende Satışların Yüzdesi) | C55: 10.00% | D55: =D3*D51*$C$55 -> 0 | E55: 0 | F55: 12.5 | G55: 90 | H55: 80.4 | I55: 90 | J55: 90 | K55: 90 | L55: 60 | M55: 60 | N55: 60 | O55: 60 | Q55: =SUM('Kanal Pazarlama Bütçesi'!$D55:$O55) -> 692.90
B56: Perakendeci Toplamı ₺(000) | D56: =SUM(D52:D55) -> 900.00 | E56: =SUM(E52:E55) -> 900.00 | F56: 912.50 | G56: 990.00 | H56: 980.40 | I56: 990.00 | J56: 990.00 | K56: 990.00 | L56: 960.00 | M56: 960.00 | N56: 960.00 | O56: 960.00 | Q56: =SUM(Q53:Q55) -> 4,292.90
B57: MÜŞTERİ KAZANMA VE ELDE TUTMA (MKE) ÖĞELERİ | C57: Ücret | D57: 1. Ay | E57: 2. Ay | F57: 3. Ay | G57: 4. Ay | H57: 5. Ay | I57: 6. Ay | J57: 7. Ay | K57: 8. Ay | L57: 9. Ay | M57: 10. Ay | N57: 11. Ay | O57: 12. Ay
B58: MÜŞTERİ ALIMI VE BEKLETMESİ (MAB)
B59: İnsan Kaynakları | D59: 50 | E59: 50 | F59: 50 | G59: 50 | H59: 50 | I59: 50 | J59: 50 | K59: 50 | L59: 50 | M59: 50 | N59: 50 | O59: 50 | Q59: =SUM('Kanal Pazarlama Bütçesi'!$D59:$O59) -> 600.00
B60: İletişim | D60: 250.00 | E60: 250.00 | F60: 250.00 | G60: 250.00 | H60: 250.00 | I60: 250.00 | J60: 250.00 | K60: 250.00 | L60: 250.00 | M60: 250.00 | N60: 250.00 | O60: 250.00 | Q60: =SUM('Kanal Pazarlama Bütçesi'!$D60:$O60) -> 3,000.00
B61: Promosyonlar/Kuponlar | D61: 600 | E61: 600 | F61: 600 | G61: 600 | H61: 600 | I61: 600 | J61: 600 | K61: 600 | L61: 600 | M61: 600 | N61: 600 | O61: 600 | Q61: =SUM('Kanal Pazarlama Bütçesi'!$D61:$O61) -> 7,200.00
B62: MAB Toplamı ₺(000) | D62: =SUM(D59:D61) -> 900.00 | E62: =SUM(E59:E61) -> 900.00 | F62: 900.00 | G62: 900.00 | H62: 900.00 | I62: 900.00 | J62: 900.00 | K62: 900.00 | L62: 900.00 | M62: 900.00 | N62: 900.00 | O62: 900.00 | Q62: =SUM(Q59:Q61) -> 10,800.00
B63: DİĞER GİDER ÖĞELERİ | C63: Ücret | D63: 1. Ay | E63: 2. Ay | F63: 3. Ay | G63: 4. Ay | H63: 5. Ay | I63: 6. Ay | J63: 7. Ay | K63: 8. Ay | L63: 9. Ay | M63: 10. Ay | N63: 11. Ay | O63: 12. Ay
B64: DİĞER GİDERLER
B65: Seyahat | D65: 50 | E65: 50 | F65: 50 | G65: 50 | H65: 50 | I65: 50 | J65: 50 | K65: 50 | L65: 50 | M65: 50 | N65: 50 | O65: 50 | Q65: =SUM('Kanal Pazarlama Bütçesi'!$D65:$O65) -> 600.00
B66: Altyapı (bilgisayar, telefon vb.) | D66: 250.00 | E66: 250.00 | F66: 250.00 | G66: 250.00 | H66: 250.00 | I66: 250.00 | J66: 250.00 | K66: 250.00 | L66: 250.00 | M66: 250.00 | N66: 250.00 | O66: 250.00 | Q66: =SUM('Kanal Pazarlama Bütçesi'!$D66:$O66) -> 3,000.00
B67: Kanal Desteği | D67: 600 | E67: 600 | F67: 600 | G67: 600 | H67: 600 | I67: 600 | J67: 600 | K67: 600 | L67: 600 | M67: 600 | N67: 600 | O67: 600 | Q67: =SUM('Kanal Pazarlama Bütçesi'!$D67:$O67) -> 7,200.00
B68: Diğer Giderler Toplamı ₺(000) | D68: =SUM(D65:D67) -> 900.00 | E68: =SUM(E65:E67) -> 900.00 | F68: 900.00 | G68: 900.00 | H68: 900.00 | I68: 900.00 | J68: 900.00 | K68: 900.00 | L68: 900.00 | M68: 900.00 | N68: 900.00 | O68: 900.00 | Q68: =SUM(Q65:Q67) -> 10,800.00
B70: TOPLAM PAZARLAMA BÜTÇESİ: | D70: =SUM(D34,Aracı[[#Totals],[1. Ay]],Dağıtımcılar[[#Totals],[1. Ay]],Perakendeci[[#Totals],[1. Ay]],ARABA[[#Totals],[1. Ay]],DiğerGiderler[[#Totals],[1. Ay]]) -> 6,354.00 | E70: =SUM(DiğerGiderler[[#Totals],[2. Ay]],ARABA[[#Totals],[2. Ay]],Perakendeci[[#Totals],[2. Ay]],Dağıtımcılar[[#Totals],[2. Ay]],Aracı[[#Totals],[2. Ay]],E34) -> 5,785.85 | F70: =SUM(DiğerGiderler[[#Totals],[3. Ay]],ARABA[[#Totals],[3. Ay]],Perakendeci[[#Totals],[3. Ay]],Dağıtımcılar[[#Totals],[3. Ay]],Aracı[[#Totals],[3. Ay]],F34) -> 5,834.44 | G70: =SUM(DiğerGiderler[[#Totals],[4. Ay]],ARABA[[#Totals],[4. Ay]],Perakendeci[[#Totals],[4. Ay]],Dağıtımcılar[[#Totals],[4. Ay]],Aracı[[#Totals],[4. Ay]],G34) -> 5,902.05 | H70: =SUM(DiğerGiderler[[#Totals],[5. Ay]],ARABA[[#Totals],[5. Ay]],Perakendeci[[#Totals],[5. Ay]],Dağıtımcılar[[#Totals],[5. Ay]],Aracı[[#Totals],[5. Ay]],H34) -> 5,916.35 | I70: =SUM(DiğerGiderler[[#Totals],[6. Ay]],ARABA[[#Totals],[6. Ay]],Perakendeci[[#Totals],[6. Ay]],Dağıtımcılar[[#Totals],[6. Ay]],Aracı[[#Totals],[6. Ay]],I34) -> 5,935.69 | J70: =SUM(DiğerGiderler[[#Totals],[7. Ay]],ARABA[[#Totals],[7. Ay]],Perakendeci[[#Totals],[7. Ay]],Dağıtımcılar[[#Totals],[7. Ay]],Aracı[[#Totals],[7. Ay]],J34) -> 5,976.90 | K70: =SUM(DiğerGiderler[[#Totals],[8. Ay]],ARABA[[#Totals],[8. Ay]],Perakendeci[[#Totals],[8. Ay]],Dağıtımcılar[[#Totals],[8. Ay]],Aracı[[#Totals],[8. Ay]],K34) -> 6,015.84 | L70: =SUM(DiğerGiderler[[#Totals],[9. Ay]],ARABA[[#Totals],[9. Ay]],Perakendeci[[#Totals],[9. Ay]],Dağıtımcılar[[#Totals],[9. Ay]],Aracı[[#Totals],[9. Ay]],L34) -> 6,031.80 | M70: =SUM(DiğerGiderler[[#Totals],[10. Ay]],ARABA[[#Totals],[10. Ay]],Perakendeci[[#Totals],[10. Ay]],Dağıtımcılar[[#Totals],[10. Ay]],Aracı[[#Totals],[10. Ay]],M34) -> 6,001.80 | N70: =SUM(DiğerGiderler[[#Totals],[11. Ay]],ARABA[[#Totals],[11. Ay]],Perakendeci[[#Totals],[11. Ay]],Dağıtımcılar[[#Totals],[11. Ay]],Aracı[[#Totals],[11. Ay]],N34) -> 6,056.80 | O70: =SUM(DiğerGiderler[[#Totals],[12. Ay]],ARABA[[#Totals],[12. Ay]],Perakendeci[[#Totals],[12. Ay]],Dağıtımcılar[[#Totals],[12. Ay]],Aracı[[#Totals],[12. Ay]],O34) -> 6,001.80 | Q70: =Q72 -> 0.00
